[Event "Titled Tuesday Blitz April 11 Early 2023"]
[White "Einarsson, Halldor Gretar"]
[Black "Ratnakaran, K."]
[WhiteFideId "2300150"]
[BlackFideId "5005507"]
[WhiteElo "2142"]
[BlackElo "2345"]
[Result "0-1"]
[Round "05"]
[TimeControl "180+2"]
[Date "2023.04.11"]
[WhiteClock "0:00:01"]
[BlackClock "0:01:40"]

1. d4 {[%clk 0:03:00]}  Nf6 {[%clk 0:02:59]} 2. c4 {[%clk 0:02:59]}  c5 {[%clk 0:02:54]} 3. d5 {[%clk 0:02:58]}  e6 {[%clk 0:02:54]} 4. Nc3 {[%clk 0:02:57]}  exd5 {[%clk 0:02:55]} 5. cxd5 {[%clk 0:02:57]}  d6 {[%clk 0:02:56]} 6. e4 {[%clk 0:02:56]}  g6 {[%clk 0:02:57]} 7. h3 {[%clk 0:02:55]}  Bg7 {[%clk 0:02:58]} 8. Nf3 {[%clk 0:02:55]}  O-O {[%clk 0:02:59]} 9. Bd3 {[%clk 0:02:55]}  Re8 {[%clk 0:02:59]} 10. O-O {[%clk 0:02:51]}  a6 {[%clk 0:03:00]} 11. a4 {[%clk 0:02:49]}  Nbd7 {[%clk 0:03:00]} 12. Re1 {[%clk 0:02:45]}  Qc7 {[%clk 0:03:00]} 13. Bf4 {[%clk 0:02:44]}  Nh5 {[%clk 0:03:00]} 14. Bh2 {[%clk 0:02:41]}  Rb8 {[%clk 0:03:00]} 15. g4 {[%clk 0:02:24]}  Nhf6 {[%clk 0:02:56]} 16. Bf1 {[%clk 0:01:59]}  c4 {[%clk 0:02:54]} 17. Rc1 {[%clk 0:01:48]}  b5 {[%clk 0:02:54]} 18. axb5 {[%clk 0:01:45]}  axb5 {[%clk 0:02:55]} 19. b4 {[%clk 0:01:43]}  cxb3 {[%clk 0:02:52]} 20. Nxb5 {[%clk 0:01:39]}  Qb6 {[%clk 0:02:49]} 21. Nxd6 {[%clk 0:01:35]}  b2 {[%clk 0:02:47]} 22. Rb1 {[%clk 0:01:30]}  Ba6 {[%clk 0:02:31]} 23. Nxe8 {[%clk 0:01:22]}  Rxe8 {[%clk 0:02:30]} 24. Bxa6 {[%clk 0:01:15]}  Qxa6 {[%clk 0:02:30]} 25. Rxb2 {[%clk 0:01:14]}  Nxe4 {[%clk 0:02:30]} 26. Rbe2 {[%clk 0:01:02]}  f5 {[%clk 0:02:30]} 27. gxf5 {[%clk 0:01:01]}  gxf5 {[%clk 0:02:31]} 28. Nd4 {[%clk 0:00:56]}  Rf8 {[%clk 0:02:22]} 29. Nxf5 {[%clk 0:00:50]}  Nc3 {[%clk 0:02:22]} 30. Ne7+ {[%clk 0:00:47]}  Kh8 {[%clk 0:02:21]} 31. Qc2 {[%clk 0:00:37]}  Nxe2+ {[%clk 0:02:18]} 32. Qxe2 {[%clk 0:00:32]}  Qh6 {[%clk 0:02:18]} 33. Qe6 {[%clk 0:00:25]}  Nf6 {[%clk 0:02:10]} 34. Nf5 {[%clk 0:00:20]}  Qg5+ {[%clk 0:02:08]} 35. Kh1 {[%clk 0:00:18]}  Nh5 {[%clk 0:02:07]} 36. Nxg7 {[%clk 0:00:15]}  Nxg7 {[%clk 0:02:01]} 37. Be5 {[%clk 0:00:14]}  h6 {[%clk 0:01:53]} 38. Rg1 {[%clk 0:00:12]}  Kh7 {[%clk 0:01:50]} 39. Rxg5 {[%clk 0:00:07]}  Nxe6 {[%clk 0:01:49]} 40. Rh5 {[%clk 0:00:05]}  Ng5 {[%clk 0:01:49]} 41. f4 {[%clk 0:00:04]}  Nf3 {[%clk 0:01:49]} 42. Kg2 {[%clk 0:00:03]}  Ne1+ {[%clk 0:01:47]} 43. Kf2 {[%clk 0:00:03]}  Nd3+ {[%clk 0:01:47]} 44. Ke3 {[%clk 0:00:04]}  Nc5 {[%clk 0:01:47]} 45. Kd4 {[%clk 0:00:04]}  Nd7 {[%clk 0:01:47]} 46. Rh4 {[%clk 0:00:03]}  Kg6 {[%clk 0:01:46]} 47. Rg4+ {[%clk 0:00:03]}  Kf5 {[%clk 0:01:47]} 48. Rg1 {[%clk 0:00:03]}  Ra8 {[%clk 0:01:46]} 49. Rg7 {[%clk 0:00:02]}  Ra4+ {[%clk 0:01:46]} 50. Ke3 {[%clk 0:00:02]}  Nc5 {[%clk 0:01:45]} 51. d6 {[%clk 0:00:01]}  Ra3+ {[%clk 0:01:44]} 52. Kd4 {[%clk 0:00:01]}  Ne6+ {[%clk 0:01:44]} 53. Kd5 {[%clk 0:00:01]}  Nxg7 {[%clk 0:01:41]} 54. Bxg7 {[%clk 0:00:01]}  Rd3+ {[%clk 0:01:40]} 0-1


[Site "https://www.chess.com"]

[Event "Titled Tuesday Blitz April 11 Early 2023"]
[White "rionelG"]
[Black "Krsnik Cohar, Ivan Vihor"]
[BlackFideId "14520044"]
[WhiteElo "2167"]
[BlackElo "2414"]
[Result "0-1"]
[Round "05"]
[TimeControl "180+2"]
[Date "2023.04.11"]
[WhiteClock "0:00:08"]
[BlackClock "0:00:54"]

1. e4 {[%clk 0:00:57]}  c5 {[%clk 0:02:56]} 2. g3 {[%clk 0:00:58]}  d5 {[%clk 0:02:54]} 3. exd5 {[%clk 0:00:57]}  Qxd5 {[%clk 0:02:54]} 4. Nf3 {[%clk 0:00:58]}  Nc6 {[%clk 0:02:54]} 5. Bg2 {[%clk 0:00:59]}  Qe6+ {[%clk 0:01:43]} 6. Qe2 {[%clk 0:00:56]}  Qxe2+ {[%clk 0:01:40]} 7. Kxe2 {[%clk 0:00:57]}  Bg4 {[%clk 0:01:41]} 8. c3 {[%clk 0:00:56]}  e5 {[%clk 0:01:32]} 9. d3 {[%clk 0:00:56]}  O-O-O {[%clk 0:01:30]} 10. Nd2 {[%clk 0:00:54]}  Nf6 {[%clk 0:01:26]} 11. Nc4 {[%clk 0:00:48]}  b5 {[%clk 0:01:21]} 12. Ne3 {[%clk 0:00:44]}  Bh5 {[%clk 0:01:21]} 13. a4 {[%clk 0:00:41]}  c4 {[%clk 0:01:19]} 14. axb5 {[%clk 0:00:39]}  cxd3+ {[%clk 0:01:19]} 15. Ke1 {[%clk 0:00:26]}  e4 {[%clk 0:01:14]} 16. bxc6 {[%clk 0:00:19]}  Bxf3 {[%clk 0:01:07]} 17. Bxf3 {[%clk 0:00:18]}  exf3 {[%clk 0:01:08]} 18. Rxa7 {[%clk 0:00:17]}  Bc5 {[%clk 0:01:08]} 19. Rxf7 {[%clk 0:00:15]}  Ne4 {[%clk 0:01:02]} 20. Bd2 {[%clk 0:00:13]}  Rhf8 {[%clk 0:01:01]} 21. Rxf8 {[%clk 0:00:13]}  Rxf8 {[%clk 0:01:01]} 22. Nd1 {[%clk 0:00:13]}  Kc7 {[%clk 0:00:58]} 23. Be3 {[%clk 0:00:10]}  Bxe3 {[%clk 0:00:56]} 24. fxe3 {[%clk 0:00:09]}  Kxc6 {[%clk 0:00:56]} 25. Nf2 {[%clk 0:00:08]}  d2+ {[%clk 0:00:54]} 0-1


[Site "https://www.chess.com"]

[Event "Titled Tuesday Blitz April 11 Early 2023"]
[White "Dahlgren, James Allen"]
[Black "Womacka, Mathias"]
[WhiteFideId "22256873"]
[BlackFideId "4611390"]
[WhiteElo "2165"]
[BlackElo "2377"]
[Result "0-1"]
[Round "05"]
[TimeControl "180+2"]
[Date "2023.04.11"]
[WhiteClock "0:00:44"]
[BlackClock "0:01:47"]

1. d3 {[%clk 0:03:00]}  e5 {[%clk 0:02:57]} 2. f4 {[%clk 0:03:00]}  Nc6 {[%clk 0:02:54]} 3. Nf3 {[%clk 0:02:59]}  exf4 {[%clk 0:02:50]} 4. Bxf4 {[%clk 0:02:59]}  d5 {[%clk 0:02:51]} 5. Nc3 {[%clk 0:02:58]}  d4 {[%clk 0:02:44]} 6. e4 {[%clk 0:02:59]}  dxc3 {[%clk 0:02:44]} 7. bxc3 {[%clk 0:03:00]}  Nf6 {[%clk 0:02:38]} 8. Be2 {[%clk 0:02:49]}  Be7 {[%clk 0:02:38]} 9. O-O {[%clk 0:02:47]}  O-O {[%clk 0:02:38]} 10. Qd2 {[%clk 0:02:40]}  Bg4 {[%clk 0:02:34]} 11. Rab1 {[%clk 0:02:31]}  b6 {[%clk 0:02:32]} 12. h3 {[%clk 0:02:17]}  Bh5 {[%clk 0:02:31]} 13. e5 {[%clk 0:02:05]}  Nd5 {[%clk 0:02:30]} 14. Bh2 {[%clk 0:02:02]}  Bxf3 {[%clk 0:02:22]} 15. Bxf3 {[%clk 0:02:02]}  Bg5 {[%clk 0:02:22]} 16. Qe2 {[%clk 0:01:48]}  Nxc3 {[%clk 0:02:20]} 17. Qf2 {[%clk 0:01:34]}  Qd7 {[%clk 0:02:09]} 18. Rbe1 {[%clk 0:01:29]}  Rad8 {[%clk 0:02:02]} 19. Qg3 {[%clk 0:01:22]}  Bd2 {[%clk 0:01:53]} 20. Ra1 {[%clk 0:00:54]}  Nd4 {[%clk 0:01:51]} 21. Bg4 {[%clk 0:00:45]}  Nde2+ {[%clk 0:01:47]} 22. Bxe2 {[%clk 0:00:44]}  Nxe2+ {[%clk 0:01:47]} 0-1


[Site "https://www.chess.com"]

[Event "Titled Tuesday Blitz April 11 Early 2023"]
[White "Kaplan, Avi Harrison"]
[Black "Vargas Rodriguez, Wilver"]
[WhiteFideId "30934559"]
[BlackFideId "3509672"]
[WhiteElo "1983"]
[BlackElo "2224"]
[Result "0-1"]
[Round "05"]
[TimeControl "180+2"]
[Date "2023.04.11"]
[WhiteClock "0:00:08"]
[BlackClock "0:00:08"]

1. c3 {[%clk 0:03:00]}  c5 {[%clk 0:02:50]} 2. Na3 {[%clk 0:03:00]}  Nc6 {[%clk 0:02:49]} 3. e4 {[%clk 0:02:59]}  g6 {[%clk 0:02:47]} 4. Nc4 {[%clk 0:02:58]}  Bg7 {[%clk 0:02:46]} 5. f4 {[%clk 0:02:57]}  d6 {[%clk 0:02:46]} 6. Nf3 {[%clk 0:02:56]}  e6 {[%clk 0:02:36]} 7. Be2 {[%clk 0:02:55]}  Nge7 {[%clk 0:02:35]} 8. O-O {[%clk 0:02:54]}  O-O {[%clk 0:02:30]} 9. d3 {[%clk 0:02:54]}  b5 {[%clk 0:02:30]} 10. Ne3 {[%clk 0:02:51]}  Qb6 {[%clk 0:02:19]} 11. h4 {[%clk 0:02:49]}  h5 {[%clk 0:02:15]} 12. f5 {[%clk 0:02:40]}  exf5 {[%clk 0:02:14]} 13. Ng5 {[%clk 0:02:16]}  Ne5 {[%clk 0:01:57]} 14. Bxh5 {[%clk 0:02:14]}  Ng4 {[%clk 0:01:38]} 15. Bxg4 {[%clk 0:02:09]}  fxg4 {[%clk 0:01:34]} 16. Nxg4 {[%clk 0:02:10]}  f5 {[%clk 0:01:33]} 17. exf5 {[%clk 0:02:08]}  Bxf5 {[%clk 0:01:30]} 18. Ne3 {[%clk 0:02:07]}  c4 {[%clk 0:01:29]} 19. d4 {[%clk 0:02:05]}  Bd3 {[%clk 0:01:21]} 20. Rxf8+ {[%clk 0:01:49]}  Rxf8 {[%clk 0:01:22]} 21. h5 {[%clk 0:01:48]}  d5 {[%clk 0:01:15]} 22. Bd2 {[%clk 0:01:40]}  Qf6 {[%clk 0:01:13]} 23. Ng4 {[%clk 0:01:40]}  Qd6 {[%clk 0:00:56]} 24. Qe1 {[%clk 0:01:33]}  Rf1+ {[%clk 0:00:52]} 25. Qxf1 {[%clk 0:01:28]}  Bxf1 {[%clk 0:00:53]} 26. Rxf1 {[%clk 0:01:27]}  gxh5 {[%clk 0:00:53]} 27. Nh2 {[%clk 0:01:21]}  Qg6 {[%clk 0:00:47]} 28. Nhf3 {[%clk 0:01:12]}  Nf5 {[%clk 0:00:45]} 29. Ne5 {[%clk 0:01:04]}  Bxe5 {[%clk 0:00:40]} 30. dxe5 {[%clk 0:01:05]}  Ng3 {[%clk 0:00:37]} 31. Re1 {[%clk 0:00:50]}  Ne4 {[%clk 0:00:35]} 32. Nxe4 {[%clk 0:00:39]}  dxe4 {[%clk 0:00:35]} 33. Be3 {[%clk 0:00:37]}  h4 {[%clk 0:00:33]} 34. Bd4 {[%clk 0:00:27]}  h3 {[%clk 0:00:32]} 35. Re2 {[%clk 0:00:27]}  Kf7 {[%clk 0:00:20]} 36. Kh2 {[%clk 0:00:25]}  Ke6 {[%clk 0:00:17]} 37. gxh3 {[%clk 0:00:23]}  Qf5 {[%clk 0:00:16]} 38. Rg2 {[%clk 0:00:19]}  Qf4+ {[%clk 0:00:15]} 39. Rg3 {[%clk 0:00:19]}  Qd2+ {[%clk 0:00:14]} 40. Rg2 {[%clk 0:00:18]}  Qf4+ {[%clk 0:00:13]} 41. Kg1 {[%clk 0:00:17]}  e3 {[%clk 0:00:12]} 42. Re2 {[%clk 0:00:09]}  Qg3+ {[%clk 0:00:11]} 43. Kf1 {[%clk 0:00:06]}  Qxh3+ {[%clk 0:00:11]} 44. Rg2 {[%clk 0:00:04]}  e2+ {[%clk 0:00:10]} 45. Kf2 {[%clk 0:00:03]}  e1=Q+ {[%clk 0:00:10]} 46. Kxe1 {[%clk 0:00:03]}  Qxg2 {[%clk 0:00:10]} 47. b4 {[%clk 0:00:02]}  Qxa2 {[%clk 0:00:10]} 48. Kd1 {[%clk 0:00:02]}  a5 {[%clk 0:00:10]} 49. Kc1 {[%clk 0:00:03]}  a4 {[%clk 0:00:10]} 50. Kd1 {[%clk 0:00:02]}  a3 {[%clk 0:00:11]} 51. Be3 {[%clk 0:00:02]}  Qb1+ {[%clk 0:00:11]} 52. Bc1 {[%clk 0:00:02]}  a2 {[%clk 0:00:12]} 53. Ke2 {[%clk 0:00:03]}  a1=Q {[%clk 0:00:12]} 54. Kf3 {[%clk 0:00:04]}  Qxc1 {[%clk 0:00:12]} 55. Ke4 {[%clk 0:00:04]}  Qcxc3 {[%clk 0:00:11]} 56. Kf4 {[%clk 0:00:05]}  Qac1+ {[%clk 0:00:11]} 57. Kg4 {[%clk 0:00:04]}  Qxe5 {[%clk 0:00:08]} 58. Kh3 {[%clk 0:00:04]}  c3 {[%clk 0:00:07]} 59. Kg2 {[%clk 0:00:04]}  c2 {[%clk 0:00:08]} 60. Kf3 {[%clk 0:00:04]}  Qcb2 {[%clk 0:00:07]} 61. Kg4 {[%clk 0:00:05]}  c1=Q {[%clk 0:00:08]} 62. Kh3 {[%clk 0:00:06]}  Qxb4 {[%clk 0:00:05]} 63. Kg2 {[%clk 0:00:06]}  Qbd6 {[%clk 0:00:05]} 64. Kf3 {[%clk 0:00:05]}  Qcc7 {[%clk 0:00:06]} 65. Kg4 {[%clk 0:00:05]}  b4 {[%clk 0:00:07]} 66. Kh3 {[%clk 0:00:06]}  b3 {[%clk 0:00:08]} 67. Kg4 {[%clk 0:00:07]}  b2 {[%clk 0:00:08]} 68. Kh3 {[%clk 0:00:08]}  b1=Q {[%clk 0:00:09]} 69. Kg2 {[%clk 0:00:09]}  Qbe4+ {[%clk 0:00:08]} 70. Kg1 {[%clk 0:00:08]}  Qd2 {[%clk 0:00:08]} 71. Kf1 {[%clk 0:00:08]}  Qcc1# {[%clk 0:00:08]} 0-1


[Site "https://www.chess.com"]

[Event "Titled Tuesday Blitz April 11 Early 2023"]
[White "Mordechai, Hanan"]
[Black "Tarnowska, Aleksandra"]
[WhiteFideId "2804166"]
[BlackFideId "1180967"]
[WhiteElo "2324"]
[BlackElo "1776"]
[Result "1-0"]
[Round "05"]
[TimeControl "180+2"]
[Date "2023.04.11"]
[WhiteClock "0:00:58"]
[BlackClock "0:00:02"]

1. Nf3 {[%clk 0:03:00]}  Nf6 {[%clk 0:02:51]} 2. c4 {[%clk 0:03:01]}  d5 {[%clk 0:02:39]} 3. g3 {[%clk 0:03:02]}  c5 {[%clk 0:02:35]} 4. Bg2 {[%clk 0:03:03]}  Nc6 {[%clk 0:02:32]} 5. cxd5 {[%clk 0:03:00]}  Nxd5 {[%clk 0:02:32]} 6. O-O {[%clk 0:03:00]}  e5 {[%clk 0:02:21]} 7. e3 {[%clk 0:02:55]}  Bg4 {[%clk 0:02:07]} 8. h3 {[%clk 0:02:53]}  Bh5 {[%clk 0:02:08]} 9. Qb3 {[%clk 0:02:50]}  Nb6 {[%clk 0:02:01]} 10. d4 {[%clk 0:02:29]}  c4 {[%clk 0:01:49]} 11. Qc2 {[%clk 0:02:21]}  exd4 {[%clk 0:01:39]} 12. exd4 {[%clk 0:02:17]}  Be7 {[%clk 0:01:38]} 13. Be3 {[%clk 0:02:10]}  Bg6 {[%clk 0:01:28]} 14. Qd2 {[%clk 0:02:03]}  O-O {[%clk 0:01:27]} 15. Nc3 {[%clk 0:02:00]}  Nb4 {[%clk 0:01:23]} 16. Ne5 {[%clk 0:01:56]}  Rb8 {[%clk 0:00:51]} 17. Nxg6 {[%clk 0:01:53]}  hxg6 {[%clk 0:00:49]} 18. Rac1 {[%clk 0:01:50]}  Qd7 {[%clk 0:00:33]} 19. a3 {[%clk 0:01:45]}  Nc6 {[%clk 0:00:31]} 20. d5 {[%clk 0:01:41]}  Na5 {[%clk 0:00:30]} 21. Rcd1 {[%clk 0:01:35]}  Nb3 {[%clk 0:00:30]} 22. Qe2 {[%clk 0:01:35]}  Rfc8 {[%clk 0:00:24]} 23. Kh2 {[%clk 0:01:34]}  Bc5 {[%clk 0:00:19]} 24. Bf4 {[%clk 0:01:32]}  Bd6 {[%clk 0:00:19]} 25. Be3 {[%clk 0:01:22]}  Ra8 {[%clk 0:00:09]} 26. h4 {[%clk 0:01:21]}  Na4 {[%clk 0:00:09]} 27. Bh3 {[%clk 0:01:20]}  Nxc3 {[%clk 0:00:08]} 28. bxc3 {[%clk 0:01:16]}  Qa4 {[%clk 0:00:06]} 29. Bxc8 {[%clk 0:01:15]}  Rxc8 {[%clk 0:00:06]} 30. h5 {[%clk 0:01:13]}  gxh5 {[%clk 0:00:06]} 31. Qxh5 {[%clk 0:01:14]}  Bxa3 {[%clk 0:00:06]} 32. Kg2 {[%clk 0:01:14]}  Rd8 {[%clk 0:00:04]} 33. Rh1 {[%clk 0:01:14]}  Kf8 {[%clk 0:00:03]} 34. Qh8+ {[%clk 0:01:10]}  Ke7 {[%clk 0:00:03]} 35. Bg5+ {[%clk 0:01:11]}  f6 {[%clk 0:00:04]} 36. Qxg7+ {[%clk 0:01:11]}  Kd6 {[%clk 0:00:03]} 37. Qxf6+ {[%clk 0:01:11]}  Kc5 {[%clk 0:00:03]} 38. Be3+ {[%clk 0:01:09]}  Kb5 {[%clk 0:00:04]} 39. Qxd8 {[%clk 0:01:08]}  Qa6 {[%clk 0:00:04]} 40. Qd7+ {[%clk 0:01:07]}  Ka5 {[%clk 0:00:04]} 41. d6 {[%clk 0:01:06]}  b6 {[%clk 0:00:03]} 42. Rh5+ {[%clk 0:01:05]}  Nc5 {[%clk 0:00:03]} 43. Qc6 {[%clk 0:01:02]}  Qb7 {[%clk 0:00:02]} 44. Qxb7 {[%clk 0:01:02]}  Bb2 {[%clk 0:00:02]} 45. Rxc5+ {[%clk 0:01:00]}  bxc5 {[%clk 0:00:03]} 46. Bxc5 {[%clk 0:01:00]}  Bxc3 {[%clk 0:00:02]} 47. d7 {[%clk 0:00:59]}  a6 {[%clk 0:00:02]} 48. Ra1+ {[%clk 0:00:57]}  Bxa1 {[%clk 0:00:02]} 49. Qb4# {[%clk 0:00:58]} 1-0


[Site "https://www.chess.com"]

[Event "Titled Tuesday Blitz April 11 Early 2023"]
[White "Hartikainen, Jarmo"]
[Black "Clawitter, Craig"]
[WhiteFideId "503134"]
[BlackFideId "2023105"]
[WhiteElo "2058"]
[BlackElo "2263"]
[Result "0-1"]
[Round "05"]
[TimeControl "180+2"]
[Date "2023.04.11"]
[WhiteClock "0:00:09"]
[BlackClock "0:00:09"]

1. e4 {[%clk 0:02:57]}  e5 {[%clk 0:02:58]} 2. Nf3 {[%clk 0:02:57]}  Nc6 {[%clk 0:02:58]} 3. Bc4 {[%clk 0:02:54]}  Nf6 {[%clk 0:02:58]} 4. Ng5 {[%clk 0:02:54]}  d5 {[%clk 0:02:59]} 5. exd5 {[%clk 0:02:53]}  Na5 {[%clk 0:03:00]} 6. Bb5+ {[%clk 0:02:52]}  c6 {[%clk 0:03:00]} 7. dxc6 {[%clk 0:02:52]}  bxc6 {[%clk 0:03:01]} 8. Bd3 {[%clk 0:02:52]}  Nd5 {[%clk 0:02:46]} 9. Nf3 {[%clk 0:02:46]}  Bd6 {[%clk 0:02:42]} 10. O-O {[%clk 0:02:32]}  O-O {[%clk 0:02:42]} 11. Be4 {[%clk 0:02:05]}  f5 {[%clk 0:02:36]} 12. Bxd5+ {[%clk 0:02:03]}  cxd5 {[%clk 0:02:37]} 13. d4 {[%clk 0:01:58]}  e4 {[%clk 0:02:30]} 14. Ne5 {[%clk 0:01:58]}  f4 {[%clk 0:02:21]} 15. Nc3 {[%clk 0:01:12]}  Be6 {[%clk 0:01:57]} 16. f3 {[%clk 0:00:31]}  e3 {[%clk 0:01:03]} 17. Ne2 {[%clk 0:00:20]}  Qg5 {[%clk 0:00:49]} 18. Kh1 {[%clk 0:00:18]}  Bxe5 {[%clk 0:00:39]} 19. dxe5 {[%clk 0:00:19]}  Qxe5 {[%clk 0:00:39]} 20. Qd4 {[%clk 0:00:18]}  Qg5 {[%clk 0:00:23]} 21. b3 {[%clk 0:00:16]}  Nc6 {[%clk 0:00:19]} 22. Qc5 {[%clk 0:00:13]}  Ne5 {[%clk 0:00:16]} 23. Bb2 {[%clk 0:00:13]}  Rac8 {[%clk 0:00:13]} 24. Qd4 {[%clk 0:00:13]}  Nf7 {[%clk 0:00:12]} 25. Ng1 {[%clk 0:00:12]}  Rxc2 {[%clk 0:00:10]} 26. Rac1 {[%clk 0:00:09]}  Qxg2# {[%clk 0:00:09]} 0-1


[Site "https://www.chess.com"]

[Event "Titled Tuesday Blitz April 11 Early 2023"]
[White "NtcPou"]
[Black "Yang,ching Wei, Austin"]
[BlackFideId "16300440"]
[WhiteElo "1970"]
[BlackElo "2101"]
[Result "0-1"]
[Round "05"]
[TimeControl "180+2"]
[Date "2023.04.11"]
[WhiteClock "0:01:29"]
[BlackClock "0:02:00"]

1. e4 {[%clk 0:03:00]}  c5 {[%clk 0:02:59]} 2. Nf3 {[%clk 0:03:00]}  d6 {[%clk 0:02:57]} 3. Bb5+ {[%clk 0:03:00]}  Bd7 {[%clk 0:02:57]} 4. Bxd7+ {[%clk 0:03:00]}  Qxd7 {[%clk 0:02:57]} 5. c4 {[%clk 0:03:00]}  Nc6 {[%clk 0:02:55]} 6. Nc3 {[%clk 0:02:59]}  g6 {[%clk 0:02:52]} 7. d4 {[%clk 0:02:58]}  cxd4 {[%clk 0:02:52]} 8. Nxd4 {[%clk 0:02:58]}  Bg7 {[%clk 0:02:53]} 9. Be3 {[%clk 0:02:57]}  Nf6 {[%clk 0:02:52]} 10. f3 {[%clk 0:02:57]}  O-O {[%clk 0:02:52]} 11. O-O {[%clk 0:02:57]}  Rfc8 {[%clk 0:02:47]} 12. b3 {[%clk 0:02:56]}  Qd8 {[%clk 0:02:33]} 13. Qd2 {[%clk 0:02:55]}  Qa5 {[%clk 0:02:31]} 14. Rac1 {[%clk 0:02:53]}  a6 {[%clk 0:02:23]} 15. a4 {[%clk 0:02:25]}  Nd7 {[%clk 0:02:15]} 16. Nxc6 {[%clk 0:01:56]}  bxc6 {[%clk 0:02:13]} 17. Rfd1 {[%clk 0:01:38]}  Rab8 {[%clk 0:02:08]} 18. Qc2 {[%clk 0:01:33]}  Nc5 {[%clk 0:02:01]} 19. Rb1 {[%clk 0:01:29]}  Qxc3 {[%clk 0:02:00]} 0-1


[Site "https://www.chess.com"]

[Event "Titled Tuesday Blitz April 11 Early 2023"]
[White "Nugumanov, Bakhtiyar"]
[Black "Vargas, Mauricio"]
[WhiteFideId "13701797"]
[BlackFideId "4404572"]
[WhiteElo "2209"]
[BlackElo "1998"]
[Result "1-0"]
[Round "05"]
[TimeControl "180+2"]
[Date "2023.04.11"]
[WhiteClock "0:00:47"]
[BlackClock "0:00:16"]

1. Nf3 {[%clk 0:02:52]}  Nc6 {[%clk 0:02:58]} 2. d4 {[%clk 0:02:51]}  e6 {[%clk 0:02:57]} 3. g3 {[%clk 0:02:50]}  g6 {[%clk 0:02:56]} 4. Bg2 {[%clk 0:02:49]}  Bg7 {[%clk 0:02:56]} 5. O-O {[%clk 0:02:45]}  d6 {[%clk 0:02:56]} 6. e4 {[%clk 0:02:45]}  f5 {[%clk 0:02:55]} 7. d5 {[%clk 0:02:18]}  Nce7 {[%clk 0:02:41]} 8. dxe6 {[%clk 0:02:13]}  Bxe6 {[%clk 0:02:24]} 9. exf5 {[%clk 0:02:07]}  Bxf5 {[%clk 0:02:16]} 10. Nd4 {[%clk 0:01:56]}  Bc8 {[%clk 0:02:09]} 11. Re1 {[%clk 0:01:55]}  Nf6 {[%clk 0:01:28]} 12. Qe2 {[%clk 0:01:51]}  Kf7 {[%clk 0:01:27]} 13. Ne6 {[%clk 0:01:46]}  Bxe6 {[%clk 0:01:22]} 14. Qxe6+ {[%clk 0:01:39]}  Kf8 {[%clk 0:01:21]} 15. Bh6 {[%clk 0:01:33]}  Nfg8 {[%clk 0:00:48]} 16. Bxg7+ {[%clk 0:01:18]}  Kxg7 {[%clk 0:00:46]} 17. Nc3 {[%clk 0:00:53]}  c6 {[%clk 0:00:46]} 18. Rad1 {[%clk 0:00:49]}  d5 {[%clk 0:00:45]} 19. Ne4 {[%clk 0:00:46]}  Qc8 {[%clk 0:00:35]} 20. Qe5+ {[%clk 0:00:46]}  Kf7 {[%clk 0:00:17]} 21. Nd6+ {[%clk 0:00:46]}  Kf8 {[%clk 0:00:16]} 22. Nxc8 {[%clk 0:00:47]}  Rxc8 {[%clk 0:00:16]} 23. Qxh8 {[%clk 0:00:47]} 1-0


[Site "https://www.chess.com"]

[Event "Titled Tuesday Blitz April 11 Early 2023"]
[White "Duda, Jan-Krzysztof"]
[Black "Bluebaum, Matthias"]
[WhiteFideId "1170546"]
[BlackFideId "24651516"]
[WhiteElo "2790"]
[BlackElo "2638"]
[Result "0-1"]
[Round "06"]
[TimeControl "180+2"]
[Date "2023.04.11"]
[WhiteClock "0:01:03"]
[BlackClock "0:01:34"]

1. d4 {[%clk 0:03:00]}  d5 {[%clk 0:03:00]} 2. c4 {[%clk 0:03:00]}  e6 {[%clk 0:03:00]} 3. Nf3 {[%clk 0:03:00]}  Nf6 {[%clk 0:03:01]} 4. Nc3 {[%clk 0:02:58]}  Bb4 {[%clk 0:03:01]} 5. Qa4+ {[%clk 0:02:57]}  Nc6 {[%clk 0:03:01]} 6. e3 {[%clk 0:02:57]}  O-O {[%clk 0:03:01]} 7. Qc2 {[%clk 0:02:57]}  Bxc3+ {[%clk 0:03:01]} 8. bxc3 {[%clk 0:02:54]}  Re8 {[%clk 0:02:59]} 9. Bb2 {[%clk 0:02:49]}  Na5 {[%clk 0:02:58]} 10. cxd5 {[%clk 0:02:48]}  exd5 {[%clk 0:02:59]} 11. Nd2 {[%clk 0:02:33]}  c5 {[%clk 0:02:53]} 12. Be2 {[%clk 0:02:32]}  Qc7 {[%clk 0:02:49]} 13. Rc1 {[%clk 0:02:28]}  Bg4 {[%clk 0:02:44]} 14. Bxg4 {[%clk 0:02:07]}  Nxg4 {[%clk 0:02:45]} 15. h3 {[%clk 0:02:06]}  Rxe3+ {[%clk 0:02:14]} 16. Kf1 {[%clk 0:02:06]}  Nxf2 {[%clk 0:02:14]} 17. Kxf2 {[%clk 0:01:55]}  Qg3+ {[%clk 0:02:11]} 18. Kf1 {[%clk 0:01:52]}  Rae8 {[%clk 0:02:10]} 19. Qd1 {[%clk 0:01:45]}  R8e6 {[%clk 0:01:54]} 20. dxc5 {[%clk 0:01:11]}  Rf6+ {[%clk 0:01:39]} 21. Kg1 {[%clk 0:01:11]}  Qf2+ {[%clk 0:01:33]} 22. Kh2 {[%clk 0:01:11]}  Rxh3+ {[%clk 0:01:34]} 23. Kxh3 {[%clk 0:01:11]}  Rh6+ {[%clk 0:01:35]} 24. Kg4 {[%clk 0:01:12]}  Rg6+ {[%clk 0:01:36]} 25. Kh5 {[%clk 0:01:07]}  Qf5+ {[%clk 0:01:32]} 26. Kh4 {[%clk 0:01:07]}  Qg5+ {[%clk 0:01:33]} 27. Kh3 {[%clk 0:01:03]}  Qg3# {[%clk 0:01:34]} 0-1


[Site "https://www.chess.com"]

[Event "Titled Tuesday Blitz April 11 Early 2023"]
[White "Hakobyan, Aram"]
[Black "Zhigalko, Sergei"]
[WhiteFideId "13306677"]
[BlackFideId "13502956"]
[WhiteElo "2584"]
[BlackElo "2626"]
[Result "1-0"]
[Round "06"]
[TimeControl "180+2"]
[Date "2023.04.11"]
[WhiteClock "0:00:45"]
[BlackClock "0:00:02"]

1. d4 {[%clk 0:03:00]}  Nf6 {[%clk 0:03:00]} 2. c4 {[%clk 0:03:01]}  e6 {[%clk 0:03:00]} 3. Nc3 {[%clk 0:03:02]}  Bb4 {[%clk 0:03:00]} 4. e3 {[%clk 0:03:03]}  O-O {[%clk 0:03:00]} 5. a3 {[%clk 0:03:03]}  Bxc3+ {[%clk 0:02:59]} 6. bxc3 {[%clk 0:03:04]}  c5 {[%clk 0:02:54]} 7. Ne2 {[%clk 0:03:04]}  Nc6 {[%clk 0:02:40]} 8. Ng3 {[%clk 0:03:04]}  b6 {[%clk 0:02:36]} 9. e4 {[%clk 0:03:03]}  Ne8 {[%clk 0:02:28]} 10. d5 {[%clk 0:02:51]}  Na5 {[%clk 0:02:27]} 11. Bd3 {[%clk 0:02:51]}  Ba6 {[%clk 0:02:25]} 12. Qe2 {[%clk 0:02:52]}  Nd6 {[%clk 0:02:11]} 13. e5 {[%clk 0:02:45]}  Ndxc4 {[%clk 0:01:54]} 14. Nh5 {[%clk 0:01:43]}  Kh8 {[%clk 0:00:28]} 15. Qg4 {[%clk 0:00:45]}  Rg8 {[%clk 0:00:20]} 16. Bxh7 {[%clk 0:00:45]}  Kxh7 {[%clk 0:00:03]} 17. Nf6+ {[%clk 0:00:44]}  gxf6 {[%clk 0:00:02]} 18. Qh5+ {[%clk 0:00:44]}  Kg7 {[%clk 0:00:02]} 19. Qh6# {[%clk 0:00:45]} 1-0


[Site "https://www.chess.com"]